[Event "SS Manhem Chess Week 2022: Goteborg Open"]
[Site "Schackcentrum, Vegagatan 20, Gothenburg, Sweden"]
[Date "2022.08.12"]
[Round "2.17"]
[White "Torres, Lucas"]
[Black "Sundin, Sven-Ingvar"]
[Result "0-1"]
[TimeControl "15 minutes + 5 seconds per move from move one (Round 1 - 4) / 90 minutes + 30 seconds per move from move one (Round 5 - 8)"]
[WhiteFideId "1769464"]
[BlackFideId "1724517"]
[WhiteElo "1331"]
[BlackElo "1637"]

1. e4 {[%clk 00:15:09]} {[%emt 00:22:19]} c5 {[%clk 00:15:08]} {[%emt
00:00:01]} 2. c3 {[%clk 00:15:12]} {[%emt 00:00:02]} d5 {[%clk 00:15:07]}
{[%emt 00:00:06]} 3. exd5 {[%clk 00:15:15]} {[%emt 00:00:02]} Qxd5 {[%clk
00:15:08]} {[%emt 00:00:03]} 4. d4 {[%clk 00:15:19]} {[%emt 00:00:02]} cxd4
{[%clk 00:14:58]} {[%emt 00:00:15]} 5. cxd4 {[%clk 00:15:22]} Nc6 {[%clk
00:14:54]} {[%emt 00:00:10]} 6. Nf3 {[%clk 00:15:25]} {[%emt 00:00:03]} Nf6
{[%clk 00:14:29]} {[%emt 00:00:29]} 7. Nc3 {[%clk 00:15:17]} {[%emt 00:00:13]}
Qd8 {[%clk 00:14:29]} {[%emt 00:00:05]} 8. Be3 {[%clk 00:15:05]} {[%emt
00:00:18]} e6 {[%clk 00:14:31]} {[%emt 00:00:03]} 9. Bd3 {[%clk 00:14:41]}
{[%emt 00:00:29]} Be7 {[%clk 00:14:29]} {[%emt 00:00:06]} 10. O-O {[%clk
00:14:26]} {[%emt 00:00:20]} O-O {[%clk 00:14:21]} {[%emt 00:00:13]} 11. h3
{[%clk 00:13:48]} {[%emt 00:00:43]} b6 {[%clk 00:14:15]} {[%emt 00:00:11]} 12.
Qe2 {[%clk 00:12:31]} {[%emt 00:01:21]} Bb7 {[%clk 00:14:10]} {[%emt 00:00:10]}
13. Rfd1 {[%clk 00:11:49]} {[%emt 00:00:47]} Nb4 {[%clk 00:13:52]} {[%emt
00:00:23]} 14. Bb5 {[%clk 00:10:18]} {[%emt 00:01:34]} a6 {[%clk 00:13:37]}
{[%emt 00:00:23]} 15. Ba4 {[%clk 00:09:58]} {[%emt 00:00:23]} b5 {[%clk
00:13:31]} {[%emt 00:00:14]} 16. Bb3 {[%clk 00:09:57]} {[%emt 00:00:05]} Nbd5
{[%clk 00:13:21]} {[%emt 00:00:15]} 17. Nxd5 {[%clk 00:08:42]} {[%emt
00:01:21]} Nxd5 {[%clk 00:13:23]} {[%emt 00:00:03]} 18. Bxd5 {[%clk 00:08:14]}
{[%emt 00:00:31]} Bxd5 {[%clk 00:13:25]} {[%emt 00:00:04]} 19. a3 {[%clk
00:08:04]} {[%emt 00:00:16]} Qd7 {[%clk 00:12:56]} {[%emt 00:00:34]} 20. Rac1
{[%clk 00:07:55]} {[%emt 00:00:14]} Rfc8 {[%clk 00:12:59]} {[%emt 00:00:02]} 21.
Ne5 {[%clk 00:07:05]} {[%emt 00:00:51]} Qe8 {[%clk 00:12:57]} {[%emt 00:00:11]}
22. Qg4 {[%clk 00:05:43]} {[%emt 00:01:28]} f6 {[%clk 00:12:23]} {[%emt
00:00:38]} 23. Bh6 {[%clk 00:05:21]} {[%emt 00:00:26]} g6 {[%clk 00:12:24]}
{[%emt 00:00:04]} 24. Nf3 {[%clk 00:04:59]} {[%emt 00:00:19]} Qf7 {[%clk
00:12:03]} {[%emt 00:00:34]} 25. Qf4 {[%clk 00:03:36]} {[%emt 00:01:19]} g5
{[%clk 00:12:00]} {[%emt 00:00:18]} 26. Nxg5 {[%clk 00:02:31]} {[%emt
00:01:11]} fxg5 {[%clk 00:11:58]} {[%emt 00:00:06]} 27. Bxg5 {[%clk 00:02:30]}
{[%emt 00:00:06]} Qxf4 {[%clk 00:11:54]} {[%emt 00:00:10]} 28. Bxf4 {[%clk
00:02:34]} {[%emt 00:00:02]} Kf7 {[%clk 00:11:48]} {[%emt 00:00:10]} 29. Be5
{[%clk 00:02:09]} {[%emt 00:00:29]} Bf6 {[%clk 00:10:55]} {[%emt 00:00:59]} 30.
f4 {[%clk 00:01:29]} {[%emt 00:00:47]} Bxe5 {[%clk 00:10:09]} {[%emt 00:00:49]}
31. dxe5 {[%clk 00:01:28]} {[%emt 00:00:06]} Rc4 {[%clk 00:09:57]} {[%emt
00:00:17]} 32. f5 {[%clk 00:01:06]} {[%emt 00:00:28]} Rxc1 {[%clk 00:09:37]}
{[%emt 00:00:24]} 33. Rxc1 {[%clk 00:01:09]} {[%emt 00:00:02]} exf5 {[%clk
00:09:40]} {[%emt 00:00:02]} 34. Rc7+ {[%clk 00:01:00]} {[%emt 00:00:12]} Ke6
{[%clk 00:09:29]} {[%emt 00:00:17]} 35. Rxh7 {[%clk 00:00:52]} {[%emt
00:00:14]} Kxe5 {[%clk 00:09:31]} {[%emt 00:00:03]} 36. Rh5 {[%clk 00:00:33]}
{[%emt 00:00:21]} Be4 {[%clk 00:09:27]} {[%emt 00:00:12]} 37. Rh6 {[%clk
00:00:27]} {[%emt 00:00:09]} a5 {[%clk 00:09:15]} {[%emt 00:00:18]} 38. Rb6
{[%clk 00:00:18]} {[%emt 00:00:13]} Bd3 {[%clk 00:09:14]} {[%emt 00:00:06]} 39.
Kf2 {[%clk 00:00:12]} {[%emt 00:00:12]} f4 {[%clk 00:09:04]} {[%emt 00:00:15]}
40. Kf3 {[%clk 00:00:06]} {[%emt 00:00:12]} a4 {[%clk 00:09:04]} {[%emt
00:00:05]} 41. Kg4 {[%clk 00:00:09]} {[%emt 00:00:02]} Rg8+ {[%clk 00:09:06]}
{[%emt 00:00:02]} 42. Kf3 {[%clk 00:00:12]} {[%emt 00:00:02]} Be4+ {[%clk
00:08:47]} {[%emt 00:00:24]} 43. Kf2 {[%clk 00:00:17]} {[%emt 00:00:01]} Rxg2+
{[%clk 00:08:50]} {[%emt 00:00:02]} 44. Kf1 {[%clk 00:00:21]} Rxb2 {[%clk
00:08:52]} {[%emt 00:00:04]} 45. h4 {[%clk 00:00:20]} {[%emt 00:00:06]} Kd4
{[%clk 00:08:48]} {[%emt 00:00:09]} 46. h5 {[%clk 00:00:10]} {[%emt 00:00:14]}
Ke3 {[%clk 00:08:51]} 0-1

[Event "SS Manhem Chess Week 2022: Goteborg Open"]
[Site "Schackcentrum, Vegagatan 20, Gothenburg, Sweden"]
[Date "2022.08.12"]
[Round "2.18"]
[White "Persson, Michael"]
[Black "Imani Lasaki, Hamed"]
[Result "0-1"]
[TimeControl "15 minutes + 5 seconds per move from move one (Round 1 - 4) / 90 minutes + 30 seconds per move from move one (Round 5 - 8)"]
[WhiteFideId "1764179"]
[BlackFideId "1766970"]
[WhiteElo "1267"]
[BlackElo "1577"]

1. d4 {[%clk 00:15:08]} {[%emt 00:00:02]} d5 {[%clk 00:15:09]} {[%emt
00:00:01]} 2. c4 {[%clk 00:15:11]} {[%emt 00:00:02]} e6 {[%clk 00:15:12]}
{[%emt 00:00:02]} 3. a3 {[%clk 00:15:15]} {[%emt 00:00:02]} g6 {[%clk
00:15:09]} {[%emt 00:00:07]} 4. Nc3 {[%clk 00:15:18]} {[%emt 00:00:02]} Bg7
{[%clk 00:15:04]} {[%emt 00:00:09]} 5. e3 {[%clk 00:15:21]} {[%emt 00:00:02]}
Nf6 {[%clk 00:14:56]} {[%emt 00:00:13]} 6. Nf3 {[%clk 00:15:21]} {[%emt
00:00:05]} O-O {[%clk 00:14:47]} {[%emt 00:00:14]} 7. Bd3 {[%clk 00:15:13]}
{[%emt 00:00:13]} Nbd7 {[%clk 00:14:37]} {[%emt 00:00:15]} 8. O-O {[%clk
00:15:15]} {[%emt 00:00:03]} c5 {[%clk 00:13:31]} {[%emt 00:01:11]} 9. Re1
{[%clk 00:14:22]} {[%emt 00:00:57]} Re8 {[%clk 00:11:43]} {[%emt 00:01:54]} 10.
cxd5 {[%clk 00:13:35]} {[%emt 00:00:52]} exd5 {[%clk 00:11:26]} {[%emt
00:00:21]} 11. Bb5 {[%clk 00:13:33]} {[%emt 00:00:07]} c4 {[%clk 00:10:32]}
{[%emt 00:01:00]} 12. Bxd7 {[%clk 00:12:48]} {[%emt 00:00:50]} Bxd7 {[%clk
00:10:18]} {[%emt 00:00:19]} 13. b4 {[%clk 00:12:07]} {[%emt 00:00:47]} Bg4
{[%clk 00:08:43]} {[%emt 00:01:41]} 14. h3 {[%clk 00:11:38]} {[%emt 00:00:33]}
Be6 {[%clk 00:07:49]} {[%emt 00:00:58]} 15. Bb2 {[%clk 00:10:22]} {[%emt
00:01:22]} a6 {[%clk 00:07:45]} {[%emt 00:00:09]} 16. Rb1 {[%clk 00:10:25]}
{[%emt 00:00:03]} b5 {[%clk 00:07:33]} {[%emt 00:00:18]} 17. a4 {[%clk
00:10:11]} {[%emt 00:00:18]} Bd7 {[%clk 00:06:32]} {[%emt 00:01:06]} 18. Ne5
{[%clk 00:09:51]} {[%emt 00:00:25]} Rb8 {[%clk 00:05:18]} {[%emt 00:01:19]} 19.
axb5 {[%clk 00:08:40]} {[%emt 00:01:16]} axb5 {[%clk 00:04:44]} {[%emt
00:00:39]} 20. Ra1 {[%clk 00:07:27]} {[%emt 00:01:18]} Ra8 {[%clk 00:03:31]}
{[%emt 00:01:18]} 21. Qf3 {[%clk 00:06:17]} {[%emt 00:01:15]} Be6 {[%clk
00:02:16]} {[%emt 00:01:20]} 22. Nc6 {[%clk 00:05:59]} {[%emt 00:00:23]} Qd6
{[%clk 00:02:04]} {[%emt 00:00:17]} 23. Ne5 {[%clk 00:05:56]} {[%emt 00:00:08]}
Rxa1 {[%clk 00:01:54]} {[%emt 00:00:16]} 24. Rxa1 {[%clk 00:05:59]} {[%emt
00:00:02]} Qxb4 {[%clk 00:01:53]} {[%emt 00:00:06]} 25. Qe2 {[%clk 00:05:11]}
{[%emt 00:00:51]} Nd7 {[%clk 00:01:45]} {[%emt 00:00:14]} 26. Nc6 {[%clk
00:05:13]} {[%emt 00:00:03]} Qd6 {[%clk 00:01:43]} {[%emt 00:00:07]} 27. Na7
{[%clk 00:03:59]} {[%emt 00:01:20]} b4 {[%clk 00:01:28]} {[%emt 00:00:20]} 28.
Ncb5 {[%clk 00:03:47]} {[%emt 00:00:17]} Qb6 {[%clk 00:01:24]} {[%emt
00:00:09]} 29. Qe1 {[%clk 00:03:12]} {[%emt 00:00:40]} c3 {[%clk 00:01:05]}
{[%emt 00:00:24]} 30. Bc1 {[%clk 00:02:47]} {[%emt 00:00:30]} Bf5 {[%clk
00:00:59]} {[%emt 00:00:11]} 31. Nxc3 {[%clk 00:02:15]} {[%emt 00:00:37]} bxc3
{[%emt 00:01:11]} 32. Bd2 {[%clk 00:02:10]} {[%emt 00:00:49]} cxd2 {[%clk
00:03:00]} {[%emt 00:00:06]} 33. Qxd2 {[%clk 00:02:14]} {[%emt 00:00:01]} Ra8
{[%clk 00:02:55]} {[%emt 00:00:11]} 34. Qc1 {[%clk 00:01:15]} {[%emt 00:01:03]}
Rxa7 {[%clk 00:02:50]} {[%emt 00:00:09]} 35. Rb1 {[%clk 00:01:00]} {[%emt
00:00:21]} Qxb1 {[%clk 00:02:53]} {[%emt 00:00:03]} 36. Qxb1 {[%clk 00:01:03]}
Bxb1 {[%clk 00:02:56]} {[%emt 00:00:02]} 0-1

[Event "SS Manhem Chess Week 2022: Goteborg Open"]
[Site "Schackcentrum, Vegagatan 20, Gothenburg, Sweden"]
[Date "2022.08.12"]
[Round "2.19"]
[White "Braby, Berth S"]
[Black "Andreasson, Henrik"]
[Result "0-1"]
[TimeControl "15 minutes + 5 seconds per move from move one (Round 1 - 4) / 90 minutes + 30 seconds per move from move one (Round 5 - 8)"]
[WhiteFideId "1715836"]
[BlackFideId "1766082"]
[WhiteElo "1566"]
[BlackElo "1126"]

1. e4 {[%clk 00:15:06]} {[%emt 00:00:03]} c5 {[%clk 00:14:59]} {[%emt
00:00:12]} 2. Nf3 {[%clk 00:15:08]} {[%emt 00:00:03]} d6 {[%clk 00:15:02]}
{[%emt 00:00:02]} 3. d4 {[%clk 00:15:05]} {[%emt 00:00:07]} cxd4 {[%clk
00:15:05]} {[%emt 00:00:02]} 4. Nxd4 {[%clk 00:15:08]} {[%emt 00:00:01]} Nc6
{[%clk 00:15:08]} {[%emt 00:00:03]} 5. Bb5 {[%clk 00:14:54]} {[%emt 00:00:18]}
Bd7 {[%clk 00:15:11]} {[%emt 00:00:03]} 6. O-O {[%clk 00:14:44]} {[%emt
00:00:15]} Nxd4 {[%clk 00:14:45]} {[%emt 00:00:32]} 7. Bxd7+ {[%clk 00:14:46]}
{[%emt 00:00:02]} Qxd7 {[%clk 00:14:40]} {[%emt 00:00:10]} 8. Qxd4 {[%clk
00:14:49]} {[%emt 00:00:02]} e5 {[%clk 00:14:39]} {[%emt 00:00:07]} 9. Qd1
{[%clk 00:14:14]} {[%emt 00:00:37]} Nf6 {[%clk 00:14:42]} {[%emt 00:00:05]} 10.
Nc3 {[%clk 00:14:13]} {[%emt 00:00:06]} Be7 {[%clk 00:14:25]} {[%emt 00:00:21]}
11. Re1 {[%clk 00:13:55]} {[%emt 00:00:23]} Rc8 {[%clk 00:14:18]} {[%emt
00:00:13]} 12. Bg5 {[%clk 00:13:02]} {[%emt 00:00:58]} h6 {[%clk 00:14:04]}
{[%emt 00:00:20]} 13. Bxf6 {[%clk 00:12:46]} {[%emt 00:00:21]} Bxf6 {[%clk
00:13:59]} {[%emt 00:00:09]} 14. Nd5 {[%clk 00:12:35]} {[%emt 00:00:16]} Qe6
{[%clk 00:13:39]} {[%emt 00:00:23]} 15. c3 {[%clk 00:12:14]} {[%emt 00:00:28]}
O-O {[%clk 00:13:11]} {[%emt 00:00:33]} 16. Nxf6+ {[%clk 00:11:55]} {[%emt
00:00:24]} Qxf6 {[%clk 00:13:10]} {[%emt 00:00:06]} 17. Qd2 {[%clk 00:11:48]}
{[%emt 00:00:12]} Rfd8 {[%clk 00:13:06]} {[%emt 00:00:09]} 18. Rad1 {[%clk
00:11:34]} {[%emt 00:00:20]} Rc6 {[%clk 00:12:05]} {[%emt 00:01:06]} 19. Re3
{[%clk 00:11:15]} {[%emt 00:00:23]} Ra6 {[%clk 00:11:33]} {[%emt 00:00:39]} 20.
a3 {[%clk 00:11:01]} Qe6 {[%clk 00:11:28]} {[%emt 00:00:29]} 21. Qd5 {[%clk
00:10:42]} Qxd5 {[%clk 00:10:59]} {[%emt 00:00:58]} 22. Rxd5 {[%clk 00:10:41]}
f6 {[%clk 00:10:37]} {[%emt 00:00:33]} 23. Red3 {[%clk 00:10:32]} Kf7 {[%clk
00:10:36]} {[%emt 00:00:19]} 24. c4 {[%clk 00:09:46]} Ke6 {[%clk 00:10:05]}
{[%emt 00:01:27]} 25. c5 {[%clk 00:09:05]} Rc6 {[%clk 00:08:50]} {[%emt
00:02:07]} 26. b4 {[%clk 00:08:09]} b6 {[%clk 00:08:15]} {[%emt 00:01:40]} 27.
cxb6 {[%clk 00:07:25]} axb6 {[%clk 00:07:39]} {[%emt 00:01:31]} 28. f3 {[%clk
00:06:40]} Rc2 {[%clk 00:05:10]} {[%emt 00:03:23]} 29. Rb5 {[%clk 00:06:21]}
Rc6 {[%clk 00:04:32]} {[%emt 00:01:08]} 30. Rbd5 {[%clk 00:06:10]} Rc2 {[%clk
00:04:32]} {[%emt 00:00:20]} 31. Rd2 {[%clk 00:05:50]} Rxd2 {[%clk 00:04:25]}
{[%emt 00:00:37]} 32. Rxd2 {[%clk 00:05:54]} Rc8 {[%clk 00:03:58]} {[%emt
00:00:33]} 33. Rd3 {[%clk 00:05:30]} Rc2 {[%clk 00:03:50]} {[%emt 00:00:41]} 34.
Kf1 {[%clk 00:05:13]} g6 {[%clk 00:02:57]} {[%emt 00:01:21]} 35. h3 {[%clk
00:05:10]} h5 {[%clk 00:02:50]} {[%emt 00:00:19]} 36. Kg1 {[%clk 00:04:41]} h4
{[%clk 00:02:33]} {[%emt 00:00:55]} 37. Kf1 {[%clk 00:04:44]} f5 {[%clk
00:01:49]} {[%emt 00:00:52]} 38. exf5+ {[%clk 00:04:32]} gxf5 {[%clk 00:01:52]}
{[%emt 00:00:20]} 39. Kg1 {[%clk 00:04:00]} d5 {[%clk 00:01:52]} {[%emt
00:00:42]} 40. Kf1 {[%clk 00:03:31]} d4 {[%clk 00:01:37]} {[%emt 00:00:54]} 41.
Kg1 {[%clk 00:03:17]} Rc3 {[%clk 00:01:31]} {[%emt 00:00:29]} 42. Rd2 {[%clk
00:02:40]} Rxa3 {[%clk 00:01:33]} {[%emt 00:00:45]} 43. f4 {[%clk 00:02:33]}
Rc3 {[%clk 00:01:23]} {[%emt 00:00:28]} 44. fxe5 {[%clk 00:02:30]} Kxe5 {[%clk
00:01:25]} {[%emt 00:00:11]} 45. Re2+ {[%clk 00:02:26]} Kd5 {[%clk 00:01:22]}
{[%emt 00:00:17]} 46. Rf2 {[%clk 00:02:20]} Ke5 {[%emt 00:00:23]} 47. Re2+ Re3
{[%clk 00:01:19]} {[%emt 00:00:01]} 48. Rd2 {[%clk 00:02:09]} Ke4 {[%clk
00:01:09]} {[%emt 00:00:36]} 49. Kf2 {[%clk 00:02:09]} Rc3 {[%clk 00:00:59]}
{[%emt 00:00:20]} 50. Re2+ {[%clk 00:02:08]} Kd5 {[%clk 00:01:02]} {[%emt
00:00:08]} 51. Rd2 {[%clk 00:02:06]} Kc4 {[%clk 00:01:03]} {[%emt 00:00:10]} 52.
b5 {[%clk 00:02:04]} d3 {[%clk 00:01:03]} {[%emt 00:00:13]} 53. Ke3 {[%clk
00:01:59]} Rb3 {[%clk 00:00:39]} {[%emt 00:00:39]} 54. Kf3 {[%clk 00:01:39]}
Kc3 {[%clk 00:00:37]} {[%emt 00:00:32]} 55. Ke3 {[%clk 00:01:36]} f4 {[%clk
00:00:27]} {[%emt 00:00:23]} 0-1

[Event "SS Manhem Chess Week 2022: Goteborg Open"]
[Site "Schackcentrum, Vegagatan 20, Gothenburg, Sweden"]
[Date "2022.08.12"]
[Round "3.1"]
[White "Kasib, Laith"]
[Black "Heimisson, Hilmir Freyr"]
[Result "0-1"]
[TimeControl "15 minutes + 5 seconds per move from move one (Round 1 - 4) / 90 minutes + 30 seconds per move from move one (Round 5 - 8)"]
[WhiteTitle "FM"]
[BlackTitle "IM"]
[WhiteFideId "4801059"]
[BlackFideId "2309998"]
[WhiteElo "2051"]
[BlackElo "2323"]

1. Nf3 {[%clk 00:15:07]} {[%emt 00:00:02]} d5 {[%clk 00:15:10]} {[%emt
00:00:01]} 2. g3 {[%clk 00:15:10]} {[%emt 00:00:04]} Nf6 {[%clk 00:15:08]}
{[%emt 00:00:05]} 3. Bg2 {[%clk 00:15:13]} {[%emt 00:00:02]} e6 {[%clk
00:15:01]} {[%emt 00:00:11]} 4. d3 {[%clk 00:15:05]} {[%emt 00:00:13]} c5
{[%clk 00:14:28]} {[%emt 00:00:39]} 5. Nbd2 {[%clk 00:15:06]} {[%emt 00:00:03]}
Nc6 {[%clk 00:14:32]} {[%emt 00:00:01]} 6. O-O {[%clk 00:15:08]} {[%emt
00:00:03]} Be7 {[%clk 00:14:35]} {[%emt 00:00:02]} 7. e4 {[%clk 00:15:12]} O-O
{[%clk 00:14:37]} {[%emt 00:00:04]} 8. e5 {[%clk 00:15:15]} {[%emt 00:00:02]}
Nd7 {[%clk 00:14:41]} 9. Re1 {[%clk 00:15:20]} b5 {[%clk 00:14:32]} {[%emt
00:00:15]} 10. h4 {[%clk 00:15:23]} Qb6 {[%clk 00:14:32]} {[%emt 00:00:06]} 11.
Nf1 {[%clk 00:15:00]} {[%emt 00:00:29]} Bb7 {[%clk 00:14:32]} {[%emt 00:00:05]}
12. N1h2 {[%clk 00:12:00]} {[%emt 00:03:04]} Rfc8 {[%clk 00:14:35]} {[%emt
00:00:03]} 13. Ng4 {[%clk 00:11:48]} {[%emt 00:00:17]} Qd8 {[%clk 00:14:34]}
{[%emt 00:00:07]} 14. Bg5 {[%clk 00:11:00]} {[%emt 00:00:52]} h6 {[%clk
00:14:07]} {[%emt 00:00:32]} 15. Bf4 {[%clk 00:10:00]} {[%emt 00:01:05]} Bf8
{[%clk 00:14:11]} {[%emt 00:00:02]} 16. Qd2 {[%clk 00:09:56]} {[%emt 00:00:08]}
a5 {[%clk 00:14:06]} {[%emt 00:00:10]} 17. h5 {[%clk 00:09:44]} {[%emt
00:00:17]} a4 {[%clk 00:13:59]} {[%emt 00:00:13]} 18. a3 {[%clk 00:09:45]}
{[%emt 00:00:03]} Ra6 {[%clk 00:13:51]} {[%emt 00:00:13]} 19. Ngh2 {[%clk
00:09:09]} {[%emt 00:00:40]} Nd4 {[%clk 00:12:50]} {[%emt 00:01:06]} 20. Nxd4
{[%clk 00:08:51]} {[%emt 00:00:24]} cxd4 {[%clk 00:12:54]} {[%emt 00:00:01]} 21.
Nf3 {[%clk 00:08:53]} {[%emt 00:00:03]} Bc5 {[%clk 00:11:16]} {[%emt 00:01:42]}
22. Bh3 {[%clk 00:08:09]} {[%emt 00:00:49]} Rac6 {[%clk 00:10:53]} {[%emt
00:00:29]} 23. g4 {[%clk 00:07:00]} {[%emt 00:01:14]} Bb6 {[%clk 00:09:39]}
{[%emt 00:01:18]} 24. Rec1 {[%clk 00:05:57]} {[%emt 00:01:08]} Qc7 {[%clk
00:08:47]} {[%emt 00:00:57]} 25. Bxh6 {[%clk 00:04:48]} {[%emt 00:01:14]} Nxe5
{[%clk 00:08:32]} {[%emt 00:00:19]} 26. Nxe5 {[%clk 00:04:34]} {[%emt
00:00:20]} Qxe5 {[%clk 00:08:36]} {[%emt 00:00:02]} 27. Re1 {[%clk 00:03:58]}
{[%emt 00:00:40]} Qf6 {[%clk 00:07:35]} {[%emt 00:01:06]} 28. Bg5 {[%clk
00:02:28]} {[%emt 00:01:36]} Qf3 {[%clk 00:07:29]} {[%emt 00:00:10]} 29. Bg2
{[%clk 00:02:18]} {[%emt 00:00:15]} Qxg4 {[%clk 00:07:31]} {[%emt 00:00:04]} 30.
Rac1 {[%clk 00:02:16]} {[%emt 00:00:07]} Qxh5 {[%clk 00:07:11]} {[%emt
00:00:24]} 31. Bf4 {[%clk 00:01:50]} {[%emt 00:00:31]} Qg4 {[%clk 00:06:14]}
{[%emt 00:01:01]} 32. f3 {[%clk 00:01:36]} {[%emt 00:00:19]} Qh4 {[%clk
00:05:44]} {[%emt 00:00:35]} 33. Bg5 {[%clk 00:00:59]} {[%emt 00:00:42]} Ba5
{[%clk 00:04:58]} {[%emt 00:00:52]} 34. Qxa5 {[%clk 00:00:58]} {[%emt
00:00:07]} Qxg5 {[%clk 00:05:01]} {[%emt 00:00:01]} 35. c4 {[%clk 00:00:13]}
{[%emt 00:00:50]} dxc4 {[%clk 00:04:27]} {[%emt 00:00:40]} 36. dxc4 {[%clk
00:00:16]} {[%emt 00:00:01]} Rxc4 {[%clk 00:03:59]} {[%emt 00:00:33]} 37. Rxc4
{[%clk 00:00:18]} {[%emt 00:00:04]} Rxc4 {[%clk 00:04:02]} {[%emt 00:00:02]} 38.
Re2 {[%clk 00:00:09]} {[%emt 00:00:14]} Bxf3 {[%clk 00:03:44]} {[%emt
00:00:22]} 39. Qxb5 {[%clk 00:00:00]} {[%emt 00:00:09]} 0-1

[Event "SS Manhem Chess Week 2022: Goteborg Open"]
[Site "Schackcentrum, Vegagatan 20, Gothenburg, Sweden"]
[Date "2022.08.12"]
[Round "3.2"]
[White "Jacobsen, Mikkel Manosri"]
[Black "Pettersson, Anders"]
[Result "1-0"]
[TimeControl "15 minutes + 5 seconds per move from move one (Round 1 - 4) / 90 minutes + 30 seconds per move from move one (Round 5 - 8)"]
[WhiteTitle "FM"]
[WhiteFideId "1444514"]
[BlackFideId "1715143"]
[WhiteElo "2320"]
[BlackElo "2042"]

1. d4 {[%clk 00:15:08]} {[%emt 00:05:27]} d5 {[%clk 00:15:09]} 2. c4 {[%clk
00:15:11]} {[%emt 00:00:01]} e6 {[%clk 00:15:13]} {[%emt 00:00:01]} 3. Nf3
{[%clk 00:15:14]} {[%emt 00:00:03]} a6 {[%clk 00:15:17]} 4. e3 {[%clk
00:15:03]} {[%emt 00:00:16]} Nf6 {[%clk 00:15:17]} {[%emt 00:00:05]} 5. b3
{[%clk 00:14:55]} {[%emt 00:00:14]} Be7 {[%clk 00:15:00]} {[%emt 00:00:22]} 6.
Bd3 {[%clk 00:14:58]} {[%emt 00:00:02]} O-O {[%clk 00:15:02]} {[%emt 00:00:03]}
7. O-O {[%clk 00:15:00]} {[%emt 00:00:03]} b6 {[%clk 00:14:05]} {[%emt
00:01:02]} 8. Bb2 {[%clk 00:14:59]} {[%emt 00:00:06]} Bb7 {[%clk 00:14:09]}
{[%emt 00:00:01]} 9. Qe2 {[%clk 00:15:01]} {[%emt 00:00:03]} Nbd7 {[%clk
00:13:30]} {[%emt 00:00:43]} 10. Rd1 {[%clk 00:14:45]} {[%emt 00:00:22]} Ne4
{[%clk 00:13:04]} {[%emt 00:00:31]} 11. Nbd2 {[%clk 00:14:18]} {[%emt
00:00:32]} Ndf6 {[%clk 00:13:06]} {[%emt 00:00:03]} 12. Ne5 {[%clk 00:13:38]}
{[%emt 00:00:45]} Nxd2 {[%clk 00:12:22]} {[%emt 00:00:49]} 13. Qxd2 {[%clk
00:12:55]} {[%emt 00:00:49]} Ne4 {[%clk 00:12:22]} {[%emt 00:00:05]} 14. Qc2
{[%clk 00:12:48]} {[%emt 00:00:12]} f6 {[%clk 00:10:46]} {[%emt 00:01:41]} 15.
cxd5 {[%clk 00:12:39]} {[%emt 00:00:14]} Qxd5 {[%clk 00:09:29]} {[%emt
00:01:22]} 16. Bc4 {[%clk 00:10:32]} {[%emt 00:02:11]} Qd6 {[%clk 00:09:07]}
{[%emt 00:00:28]} 17. Nf3 {[%clk 00:10:35]} {[%emt 00:00:02]} Qd7 {[%clk
00:08:14]} {[%emt 00:00:58]} 18. Bd3 {[%clk 00:08:42]} {[%emt 00:01:58]} Qd5
{[%clk 00:07:18]} {[%emt 00:01:01]} 19. Qxc7 {[%clk 00:07:05]} {[%emt
00:01:41]} Bd6 {[%clk 00:05:21]} {[%emt 00:02:04]} 20. Qxb6 {[%clk 00:05:38]}
{[%emt 00:01:32]} Rab8 {[%clk 00:04:26]} {[%emt 00:01:00]} 21. Bxe4 {[%clk
00:05:37]} {[%emt 00:00:06]} 1-0